Cogmind - Beta 16 @@@ ROGUE MODE // 2026.01.10 @ 17:02:51 Player: Mojosoup Result: Destroyed by G-47 Trooper with Particle Gun Performance ------------- Evolutions (0) 0 Regions Visited (2) 400 Robots Destroyed (10) 50 Value Destroyed (364) 364 Prototype IDs (6) 120 Alien Tech Used (0) 0 Bonus (0) 0 TOTAL SCORE: 934 Bonus ------- None Cogmind --------- Core Integrity 0/250 Matter 183/300 Energy 100/100 System Corruption 0% Temperature Cool (9) Movement Core (100) Ox1 Location -10/Mines Parts ------- > --- POWER (1) -------- (None) > --- PROPULSION (2) --- (None) > --- UTILITY (2) ------ Small Storage Unit Signal Interpreter > --- WEAPON (2) ------- (None) > --- INVENTORY (8) ---- Improved Heat Sink Structural Scanner Experimental Sensor Array Utility Shielding Peak State ------------ > --- POWER ------------ Heavy Ion Engine > --- PROPULSION ------- Aluminum Leg Aluminum Leg > --- UTILITY ---------- Improved Heat Sink Small Storage Unit > --- WEAPON ----------- Shotgun Shotgun > --- INVENTORY -------- Ion Engine Light Treads Light Treads Utility Shielding Medium Laser Shotgun Shotgun Mini Grenade Launcher [Rating: 14] Favorites ----------- Power Heavy Ion Engine Engine Heavy Ion Engine Propulsion Aluminum Leg Leg Aluminum Leg Utility Small Storage Unit Device Improved Heat Sink Storage Small Storage Unit Processor Signal Interpreter Weapon Shotgun Energy Gun Small Laser Ballistic Gun Shotgun Launcher Rocket Launcher Build | -11 -10 -10 ------- Run | Yrd Mat Min Slots Evolved . | . . . Power . | . . . Propulsion . | . . . Utility . | . . . Weapon . | . . . Parts Attached 16 | 6 6 4 Power 2 | 1 1 . Engine 2 | 1 1 . Core . | . . . Reactor . | . . . Propulsion 4 | 2 1 1 Treads . | . . . Leg 4 | 2 1 1 Wheel . | . . . Hover . | . . . Flight . | . . . Utility 3 | 1 2 . Device 1 | . 1 . Storage 1 | 1 . . Processor 1 | . 1 . Hackware . | . . . Protection . | . . . Artifact . | . . . Weapon 7 | 2 2 3 Energy Gun 2 | 2 . . Energy Cannon . | . . . Ballistic Gun 4 | . 2 2 Ballistic Cannon . | . . . Launcher 1 | . . 1 Special Weapon . | . . . Impact Weapon . | . . . Slashing Weapon . | . . . Piercing Weapon . | . . . Special Melee Weapon . | . . . Unidentified Prototypes . | . . . Parts Lost 9 | . . 9 Power 2 | . . 2 Propulsion 3 | . . 3 Utility . | . . . Weapon 4 | . . 4 Highest Loss Streak 5 | . . 5 To Critical Strikes . | . . . Average Backups 6 | 1 7 7 Power . | . . . Propulsion 1 | . 1 . Utility 2 | . 2 3 Weapon 2 | . 2 1 Tool/Special . | . . . Unused Backups 8 | . 4 4 Power 1 | . 1 . Propulsion 2 | . 2 . Utility 3 | . . 3 Weapon 2 | . 1 1 Tool/Special . | . . . Average Slot Usage (%) 95 | . 96 95 Engine 13 | . 14 13 Leg 26 | . 28 25 Device 1 | . 3 . Storage 14 | . 14 14 Processor 10 | . 7 14 Energy Gun 4 | . 7 . Ballistic Gun 21 | . 20 24 Peak Build Rating 14 | 6 14 13 Average Rating 10 | 4 10 11 On Entrance 6 | . 6 12 Avg Prop Armor Cover (%) . | . . . Naked Turns . | . . . Heaviest Build 20 | 12 20 19 Greatest Support 20 | 20 20 20 Greatest Overweight (x) 1 | . . 1 Average Overweight (x) . | . . . Largest Inventory Capacity 8 | 8 8 8 Average Capacity 7 | 7 8 8 Most Carried 8 | 4 8 8 Average Carried 6 | 1 7 7 Final Capacity 8 | 8 8 8 Final Carried 8 | 4 8 4 Class Distribution -------------------- 100% | Mutant Dominant Class ---------------- Mutant | -10/Materials Mutant | -10/Mines Resources | -11 -10 -10 ----------- Run | Yrd Mat Min Matter Collected 736 | 219 221 296 Remotely . | . . . Salvage Created 481 | . 234 247 Parts 19 | . 12 7 Haulers Intercepted 1 | . 1 . Recyclers Shooed . | . . . Parts Field Recycled . | . . . Retrieved Matter . | . . . Parts Self-Destructed . | . . . Prevented . | . . . Parts Restored . | . . . Kills | -11 -10 -10 ------- Run | Yrd Mat Min Combat Hostiles Destroyed 23 | . 4 19 Guns 19 | . 4 15 AOE 4 | . . 4 Classes Destroyed 6 | . 4 2 Tunneler 1 | . . 1 Hauler 1 | . 1 . Operator 1 | . 1 . Watcher 1 | . 1 . Grunt 6 | . 4 2 Assembled 17 | . . 17 Best Kill Streak 8 | . 2 8 Combat Bots Only 8 | . 1 8 Max Kills in Single Turn 2 | . 1 2 Gunslinging 1 | . . 1 Exploded 2 | . . 2 Melee . | . . . Uniques/NPCs Destroyed . | . . . Combat | -11 -10 -10 -------- Run | Yrd Mat Min Hostile Shots Fired 117 | . 19 98 Missed 29 | . 7 22 Hits 88 | . 12 76 Melee 6 | . . 6 Projectile 82 | . 12 70 AOE 6 | . . 6 Critical Strikes 1 | . 1 . Part Disruptions 1 | . . 1 Damage Taken 1403 | . 159 1244 Core 257 | . 24 233 Absorbed by Shields . | . . . Core Remaining (%) 100 | 100 . . Volleys Fired 77 | . 28 49 Largest 2 | . 2 2 Hottest 80 | . 80 46 Shots Fired 132 | . 56 76 Gun 127 | . 56 71 Cannon . | . . . Launcher 5 | . . 5 Special . | . . . Kinetic 115 | . 44 71 Thermal 12 | . 12 . Explosive 5 | . . 5 Electromagnetic . | . . . Robot Hit Streak 8 | . 6 8 Robot Miss Streak 7 | . 7 5 Penetration Max . | . . . Secondary Targets 2 | . . 2 Max Gunslinging Chain 1 | . . 1 Shots Hit Robots 89 | . 36 53 Core Hits 59 | . 18 41 Critical Kills 1 | . . 1 Critical Parts Destroyed . | . . . Critical Strikes 1 | . . 1 Destroy 1 | . . 1 Melee Attacks . | . . . Impact . | . . . Slashing . | . . . Piercing . | . . . Sneak Attacks . | . . . Combat Hostiles . | . . . Follow-up Attacks . | . . . Damage Inflicted 1399 | . 481 918 Guns 1159 | . 465 694 Cannons . | . . . Explosions 224 | . . 224 Melee . | . . . Ramming 16 | . 16 . Kinetic 1096 | . 402 694 Thermal 63 | . 63 . Explosive 224 | . . 224 Electromagnetic . | . . . Impact . | . . . Slashing . | . . . Piercing . | . . . Highest Corruption . | . . . Average Corruption . | . . . Corruption Purged . | . . . Corruption Blocked . | . . . Overload Shots . | . . . Overflow Damage . | . . . Projectiles . | . . . Explosions . | . . . Melee . | . . . Knockbacks . | . . . Impact . | . . . Kinetic . | . . . Secondary . | . . . Self-Inflicted Damage 27 | . . 27 Shots 1 | . . 1 Rammed . | . . . Targets Rammed 2 | . 2 . Kicked 2 | . 2 . Crushed . | . . . Highest Temperature 117 | . 117 51 Average Temperature 32 | . 45 21 Received Heat Transfer 404 | . 114 290 Siege Activations . | . . . Martial Activations . | . . . Shielding Activations . | . . . Robots Disrupted . | . . . Combat Hostiles . | . . . Robots Corrupted . | . . . Combat Hostiles . | . . . Parts Fried . | . . . Impact Corruptions . | . . . Robots Melted . | . . . Combat Hostiles . | . . . Parts Melted . | . . . Heat Transferred 150 | . 150 . Parts Sabotaged . | . . . Parts Stolen . | . . . Parts Stripped . | . . . Power Chain Reactions . | . . . Alert | -11 -10 -10 ------- Run | Yrd Mat Min Maximum Alert Level . | . . . Low Security (%) 100 | 100 100 100 Level 1 . | . . . Level 2 . | . . . Level 3 . | . . . Level 4 . | . . . Level 5 . | . . . High Security . | . . . Max Security . | . . . Peak Influence 115 | . 41 115 Initial . | . . . Average 12 | . 8 21 Influence Increases 354 | . 173 181 Destroy 0b10 Robot/C 120 | . 80 40 Destroy 0b10 Robot/NC 20 | . 15 5 Destroy Leader 34 | . 24 10 Successful Hack 24 | . 24 . Disable Machine 120 | . . 120 Destroy Structure 6 | . . 6 Lose Combat Pursuer 30 | . 30 . Influence Decreases 303 | . 173 130 Time Decay 263 | . 173 90 Lost Part 40 | . . 40 Squads Dispatched . | . . . Investigation . | . . . Extermination . | . . . Reinforcement . | . . . Assault . | . . . Garrison . | . . . Intercept . | . . . Searches Triggered . | . . . Construction Impeded . | . . . Haulers Reinforced . | . . . Active Scanning Responses . | . . . Cargo Convoy Interrupts . | . . . Stealth | -11 -10 -10 --------- Run | Yrd Mat Min Distress Signals 1 | . 1 . Communications Jammed . | . . . Distress Signals . | . . . Times Spotted 42 | . 15 27 Peak Tracking Total 8 | . 2 8 Tactical Retreats 5 | . 2 3 Traps | -11 -10 -10 ------- Run | Yrd Mat Min Traps Triggered . | . . . Indirectly . | . . . Trap Hack Attempts . | . . . Triggered . | . . . Disarmed . | . . . Reprogrammed . | . . . Reused . | . . . Traps Extracted . | . . . Installed . | . . . Triggered . | . . . Machines | -11 -10 -10 ---------- Run | Yrd Mat Min Machines Disabled 8 | . . 8 Max in Single Turn 4 | . . 4 Machines Repaired . | . . . Machines Dismantled . | . . . Machines Sabotaged . | . . . Overloaded Fab Kills . | . . . Hacking | -11 -10 -10 --------- Run | Yrd Mat Min Machines Accessed 5 | . 5 . Terminals 5 | . 5 . Fabricators . | . . . Repair Stations . | . . . Recycling Units . | . . . Scanalyzers . | . . . Garrison Access . | . . . Total Hacks 18 | . 18 . Successful 7 | . 7 . Failed 11 | . 11 . Catastrophic 2 | . 2 . Database Lockouts . | . . . Manual . | . . . Terminals 18 | . 18 . Fabricators . | . . . Repair Stations . | . . . Recycling Units . | . . . Scanalyzers . | . . . Garrison Access . | . . . Terminal Hacks 7 | . 7 . Prototype ID Bank 3 | . 3 . Emergency Access Points 1 | . 1 . Locate Traps 2 | . 2 . Dispatch Records 1 | . 1 . Fabricator Hacks . | . . . Repair Station Hacks . | . . . Recycling Unit Hacks . | . . . Scanalyzer . | . . . Garrison Access Hacks . | . . . Unauthorized Hacks . | . . . Terminals . | . . . Fabricators . | . . . Repair Stations . | . . . Recycling Units . | . . . Scanalyzers . | . . . Garrison Access . | . . . Data Cores Recovered 1 | . 1 . Used 1 | . 1 . Hacking Detections 5 | . 5 . Full Trace Events . | . . . Feedback Events . | . . . Feedback Blocked . | . . . Robot Schematics Acquired . | . . . Robots Built . | . . . Authchips . | . . . Time . | . . . Total Robot Build Rating . | . . . Part Schematics Acquired . | . . . Parts Built . | . . . Authchips . | . . . Time . | . . . Total Part Build Rating . | . . . Part Studies Acquired . | . . . Parts Repaired . | . . . Time . | . . . Parts Recycled . | . . . Recycled Matter . | . . . Retrieved Matter . | . . . Retrieved Components . | . . . Parts Scanalyzed . | . . . Part Schematics Acquired . | . . . Parts Damaged . | . . . Bothacking | -11 -10 -10 ------------ Run | Yrd Mat Min Used RIF Installer . | . . . Robots Hacked . | . . . Non-combat . | . . . Combat . | . . . Robot Hacks Applied . | . . . Relay Couplers Released . | . . . Fabnet Peak Effective % . | . . . Robots Rewired . | . . . Allies Hacked . | . . . Hacks Repelled . | . . . Allies | -11 -10 -10 -------- Run | Yrd Mat Min Total Allies . | . . . Largest Group . | . . . Highest-Rated Group . | . . . Highest-Rated Ally . | . . . Total Orders . | . . . Ally Attacks . | . . . Total Damage . | . . . Kills . | . . . Allies Corrupted . | . . . Allies Melted . | . . . Intel | -11 -10 -10 ------- Run | Yrd Mat Min Active Infowar (turns) . | . . . Robot Analysis Total . | . . . Derelict Logs Recovered 2 | . . 2 Drone Launches . | . . . Drone Recoveries . | . . . Exploration | -11 -10 -10 ------------- Run | Yrd Mat Min Turns Passed 1438 | 61 850 527 Spaces Moved 925 | 45 579 301 Core 14 | 8 . 6 Treads . | . . . Legs 911 | 37 579 295 Wheels . | . . . Hover . | . . . Flight . | . . . Fastest Speed 50 | 50 120 100 Average Speed 121 | 107 120 127 Slowest Speed 190 | 120 120 190 Overloaded Moves . | . . . Propulsion Burnouts . | . . . Robots Hopped . | . . . Potential Cave-ins . | . . . Cave-ins Triggered . | . . . Exploration Rate (%) 52 | 3 79 76 Regions Visited 2 Branch Regions 1 Pre-discovered Areas 1 | . . 1 Known Exits Taken 1 | . 1 . Unknown Exits Taken 1 | 1 . . Scrap Searched 1 | . . 1 Spaces Dug . | . . . Terrain Destroyed 6 | . . 6 Melee . | . . . Projectile . | . . . AOE 6 | . . 6 Terrain Rammed . | . . . Walls Destroyed . | . . . Machines Disabled . | . . . Actions | -11 -10 -10 --------- Run | Yrd Mat Min Total 1103 | 54 680 369 Wait 54 | . 48 6 Move 923 | 44 578 301 Hop . | . . . Pick Up 14 | 4 8 2 Fast Attach 9 | 6 3 . Attach 5 | . . 5 Detach 3 | . 2 1 Swap 5 | . 3 2 Drop 10 | . 8 2 Fire 77 | . 28 49 Melee . | . . . Ram . | . . . Kick 2 | . 2 . Crush . | . . . Escape Stasis . | . . . Rewire 1 | . . 1 Trap . | . . . Miscellaneous . | . . . Route ------- -11/Scrapyard -10/Materials (discovered 4 exits: *Mat x3 / *Min) -10/Mines (discovered 2 exits: *Mat x2) History --------- Turn | Location | Event 5 | -11/Scrapyard | Discovered new exit (range 15) 62 | -11/Scrapyard | Entered Materials 122 | -10/Materials | Discovered new exit (range 9) 317 | -10/Materials | Build established: Mutant 433 | -10/Materials | Discovered new exit (range 16) 453 | -10/Materials | Identified exit to Materials 564 | -10/Materials | Discovered exit to Materials (range 8) 693 | -10/Materials | Discovered exit to Materials (range 8) 910 | -10/Materials | Identified exit to Mines 912 | -10/Materials | Entered Mines 913 | -10/Mines | Met a Derelict bent on vengeance 955 | -10/Mines | Learned location of Storage (-7) 972 | -10/Mines | Found a damaged Exp. Sensor Array with a note attached 978 | -10/Mines | Found Prototype Device 1010 | -10/Mines | Learned Materials garrison access intel 1016 | -10/Mines | Received a Rocket Launcher from a helpful Derelict 1059 | -10/Mines | Discovered exit to Materials (range 14) 1162 | -10/Mines | Assembled infested the area 1275 | -10/Mines | Destroyed 8 combat bots 1372 | -10/Mines | Lost 5 parts (1p2n2w) 1405 | -10/Mines | Discovered exit to Materials (range 15) 1410 | -10/Mines | Core integrity fell below 50% 1434 | -10/Mines | Core integrity fell below 20% 1439 | -10/Mines | Destroyed by G-47 Trooper with Particle Gun Last Messages --------------- 01383_ Found Heat Sink. 01383_ Found Hcp. Matter Pod. 01383_ Found Seismic Detector. 01383_ Found Med. Matter Pod. 01383_ Found 48 Matter. 01384_ Acquired 48 matter. 01386_ T-07 Excavator destroyed. 01386_ as-23369 destroyed. 01388_ K-01 Serf collects debris. 01390_ Acquired 21 matter. 01392_ K-01 Serf collects debris. 01405_ EXIT=FOUND: MATERIALS 01411_ as-80615 destroyed. 01413_ Acquired 18 matter. 01429_ Shotgun destroyed. 01429_ Rocket Launcher destroyed. 01431_ G-34 Mercenary destroyed. 01432_ The unstable cave ceiling collapses. 01432_ Ion Engine destroyed. 01433_ Aluminum Leg destroyed. Map ----- +----------------------------------------------------+ | ?????????????# #????????# | | ?????????????# #????????# """ " | | ?????????????# #???#????# """ " " | | ?????????????# #??# ????# """ " " " | | ?????????????# #?# ???# | | ?????????????# #?# ???# | | ?????????????# #?# ??####### ####### | | ?????????????# ?## ########?# #?????? | | ?????????????# ?# ### #?????? | | ?????????????# # * #?????? | | ??????????? #### #####?????? | | ??????????? ?? ????#!!#?????????? | | ????????????? ???# #####! #?????????? | | ????????????? ??## # ##=!###???????? | | ?????????????????## d * ##??????? | | ????????????????## ##?????? | | ????????????????# k #?????? | | ????????????????# # #????? | | ????????????????# # #???? | | ???????????###### ! ?? | | ?????# $ # [! # | | ?????# ###### [ ### !%[ | | ????????????????# %= # #?# =! | | ??????????????### g #####? ## | | ?????????????## ##????? ##?# | | ?????????????# @t ##?????? ##???###? | | ????????????# ##??????? #???????? | | ??????????? ##???????? #???????? | | ????????? #????????? #???????? | | ??????? ##?????????? ????????? | | ????? < ????????????????????????? | | ??? ????????????????????????? | | ??### #????????????????????????? | | ????## #?????????????????????????? | | ?????####### ?????????????????????#????? | | ???????????# ?????????????????????# ???? | | ???????????# ?????????????????#???# #### | | ???????????#?????????????????## ### | | ????????????????????????????## | | ????????????????????????????# | | ??????????????????????????? | | ??????????????????????????????????## | | ???????????????????????????????????## | | ????????????????????????????????????## | | ?????????????????????????????????????## | | ?????????????????????????????########## | | ??????????????????????######## | | ??????????????????????# # | | ??????????????????????# [ # ##### | | ??????????????????????# ! #???# | +----------------------------------------------------+ Best States ------------- Heat Dissipation 39 Energy Generation 14 Energy Capacity 280 Matter Stores 300 Matter Capacity 300 Sight Range 16 Terrain Scan Density 10 Evasion (%) 55 Item Schematics ----------------- None Robot Schematics ------------------ None Fabricated ------------ Nothing Repaired ---------- Nothing Studied --------- None Alien Tech Used ----------------- None Achievements -------------- None Challenges ------------ None Game ------ Seed CatalystPointySubcomponent Manual? 0 Play Time 00:13:46 Cumulative 221.3 hours Start 2026.01.10 @ 16:53:09 End 2026.01.10 @ 17:02:51 Sessions 1 Manual Loads 0 Difficulty Rogue Special Mode None Game No. 169 Rogue 43 Adventurer 47 Explorer 79 Win Type - Total 33 Types 23/2/7/1/0/0/0/0/0/0 Lore% 54 Gallery% 69 Achievement% 44 Wizard Run 0 Options --------- Layout 0 ASCII 0 Keyboard 1 Movement Numpad Keybinds 0 Fullscreen 2 Font 18/SmallcapsGlow Map View 76x50 Zoom Use 0% Tactical HUD 1 Map Filters NONE Filters NONE Steam 1 RUN: 91910d01-063d-400d-ba25-3177d70562b3